bitfinex/quotes_ETHUSD_20250923
["timestamp","ask_amount","ask_price","bid_price","bid_amount"]
[1758599651983,7.28801298,4196.8,4196.7,0.004]
[1758599652208,7.28801298,4196.8,4196.7,0.6805]
[1758599652951,7.28801298,4196.8,4196.7,0.004]
[1758599654752,7.28806227,4196.8,4196.7,0.004]
[1758599654930,8.54869415,4196.8,4196.7,0.004]
[1758599656056,9.57529415,4196.8,4196.7,0.004]
[1758599656350,10.60869415,4196.8,4196.7,0.004]
[1758599656554,12.43000236,4196.8,4196.7,0.004]
[1758599656851,17.66869415,4196.8,4196.7,0.004]
[1758599657853,18.75960236,4196.8,4196.7,0.004]
[1758599659054,12.66460236,4196.8,4196.7,0.004]
[1758599659222,18.75960236,4196.8,4196.7,0.004]
[1758599662172,17.66869415,4196.8,4196.7,0.004]
[1758599662373,18.52503824,4196.8,4196.7,0.004]
[1758599662533,12.43003824,4196.8,4196.7,0.004]
[1758599662739,18.52503824,4196.8,4196.7,0.6789]
[1758599663075,18.52503824,4196.8,4196.7,0.4365]
[1758599663381,18.52503824,4196.8,4196.7,0.004]
[1758599663735,18.52503824,4196.8,4196.7,0.6789]
[1758599664136,12.43003824,4196.8,4196.7,0.004]
[1758599664338,10.31306227,4196.8,4196.7,0.6789]
[1758599664534,14.34706227,4196.8,4196.7,0.2464]
[1758599664754,14.98944317,4196.8,4196.7,0.004]
[1758599665079,16.40450727,4196.8,4196.7,0.004]
[1758599665577,16.16990727,4196.8,4196.7,0.004]
[1758599667064,15.81318691,4196.8,4196.7,0.004]
[1758599667292,16.17016698,4196.8,4196.7,0.004]
[1758599667686,17.02651107,4196.8,4196.7,0.004]
[1758599668002,16.17016698,4196.8,4196.7,0.004]
[1758599668309,17.02651107,4196.8,4196.7,0.004]
[1758599669191,16.17016698,4196.8,4196.7,0.004]
[1758599669565,16.03630229,4196.8,4196.7,0.004]
[1758599669866,16.17021024,4196.8,4196.7,0.004]
[1758599671419,16.40481762,4196.8,4196.7,0.004]
[1758599671578,17.69074852,4196.8,4196.7,0.004]
[1758599671912,16.40481762,4196.8,4196.7,0.004]
[1758599673906,17.19681762,4196.8,4196.7,0.004]
[1758599674682,16.96221762,4196.8,4196.7,0.004]
[1758599675110,18.24814852,4196.8,4196.7,0.004]
[1758599676324,16.96221762,4196.8,4196.7,0.004]
[1758599676887,18.24814852,4196.8,4196.7,0.004]
[1758599677822,18.24614852,4196.8,4196.7,0.004]
[1758599678027,20.30714852,4196.8,4196.7,0.004]
[1758599678888,18.24614852,4196.8,4196.7,0.004]
[1758599679102,20.30714852,4196.8,4196.7,0.004]
[1758599679326,19.02121762,4196.8,4196.7,0.004]
[1758599680392,20.30714852,4196.8,4196.7,0.004]
[1758599681601,19.51514852,4196.8,4196.7,0.4365]
[1758599681824,19.51514852,4196.8,4196.7,0.004]
[1758599682008,18.22921762,4196.8,4196.7,0.004]
[1758599682212,19.51563155,4196.8,4196.7,0.004]
[1758599682944,18.22921762,4196.8,4196.7,0.004]
[1758599684518,18.22921762,4196.8,4196.7,0.6789]
[1758599684713,18.22921762,4196.8,4196.7,0.4365]
[1758599684919,18.22921762,4196.8,4196.7,0.004]
[1758599685414,18.22821762,4196.8,4196.7,0.004]
[1758599686638,18.46931762,4196.8,4196.7,0.004]
[1758599686807,18.22821762,4196.8,4196.7,0.004]
[1758599688843,2.38288138,4196.6,4196.5,0.004]
[1758599689142,2.38288138,4196.6,4193.8,6.91534231]
[1758599689143,4.9016048,4196.6,4195.1,0.004]
[1758599689445,0.85834144,4196.2,4195.1,6.25445037]
[1758599689641,2.38322211,4196.0,4195.1,8.63812972]
[1758599689863,3.25382691,4196.0,4195.2,2.38366676]
[1758599690074,3.89753997,4196.0,4195.4,6.25045037]
[1758599690362,0.8706048,4196.0,4195.8,2.38733103]
[1758599690568,0.8706048,4196.0,4195.9,0.86857814]
[1758599690949,0.8706048,4196.0,4195.9,0.2416]
[1758599691267,0.8706048,4196.0,4195.9,0.6927]
[1758599692948,4.9006048,4196.0,4195.9,0.6927]
[1758599693249,0.8706048,4196.0,4195.9,0.6927]
[1758599694373,0.8706048,4196.0,4195.9,3.07597891]
[1758599694668,0.8706048,4196.0,4195.9,0.6927]
[1758599695971,0.8706048,4196.0,4195.9,1.86449233]
[1758599696163,0.8706048,4196.0,4195.9,4.24777124]
[1758599696730,0.8706048,4196.0,4195.9,1.86449233]
[1758599696930,0.8706048,4196.0,4195.9,0.2416]
[1758599697167,0.8706048,4196.0,4195.9,0.6927]
[1758599698685,0.8706048,4196.0,4195.9,3.07597891]
[1758599698895,0.8706048,4196.0,4195.9,0.6927]
[1758599700898,0.8706048,4196.0,4195.9,3.07597891]
[1758599701390,0.8706048,4196.0,4195.9,0.6927]
[1758599703661,0.8706048,4196.0,4195.9,0.004]
[1758599703910,1.59888257,4196.0,4195.9,0.004]
[1758599704186,3.49492691,4196.0,4195.9,0.004]
[1758599704564,7.52392691,4196.0,4195.9,0.004]
[1758599705712,8.60993997,4196.0,4195.9,0.004]
[1758599705878,7.96622691,4196.0,4195.9,0.004]
[1758599707676,9.58492691,4196.0,4195.9,0.004]
[1758599707882,12.80509215,4196.0,4195.9,0.004]
[1758599708307,19.79875071,4196.0,4195.9,0.004]
[1758599712918,19.798799,4196.0,4195.9,0.004]
[1758599713523,19.798799,4196.0,4195.8,0.004]
[1758599713524,6.17527891,4195.9,4195.8,0.004]
[1758599713726,21.64167653,4195.9,4195.8,0.004]
[1758599713925,23.92174325,4195.9,4195.8,0.004]
[1758599716529,30.17219362,4195.9,4195.8,0.004]
[1758599716695,30.17219362,4195.9,4195.8,1e-08]
[1758599717126,0.792,4195.7,4195.6,0.004]
[1758599717338,2.50184932,4195.6,4195.5,1e-08]
[1758599717541,13.52017195,4195.6,4195.5,1e-08]
[1758599717934,13.61574581,4195.6,4195.5,1e-08]
[1758599718540,13.45429544,4195.6,4195.5,1e-08]
[1758599718854,20.69480758,4195.6,4195.5,1e-08]
[1758599720449,19.41091221,4195.6,4195.5,1e-08]
[1758599720761,21.92191221,4195.6,4195.5,1e-08]
[1758599721455,21.92191221,4195.6,4195.4,1e-08]
[1758599721456,7.89450613,4195.5,4195.4,1e-08]
[1758599721658,14.95182131,4195.5,4195.4,1e-08]
[1758599721856,15.19352131,4195.5,4195.4,1e-08]
[1758599722263,13.90962594,4195.5,4195.4,1e-08]
[1758599722635,13.90927171,4195.5,4195.4,1e-08]
[1758599723056,15.70247171,4195.5,4195.4,1e-08]
[1758599723438,14.91047171,4195.5,4195.4,0.68910001]
[1758599723633,20.04374654,4195.5,4195.4,0.68910001]
[1758599726374,14.98192659,4195.5,4195.4,0.68910001]
[1758599726674,16.40280499,4195.5,4195.4,0.68910001]
[1758599727035,7.93029886,4195.5,4195.4,0.68910001]
[1758599727234,4.36856367,4195.5,4195.4,0.68910001]
[1758599727438,4.36856367,4195.5,4195.4,0.99718328]
[1758599727645,4.50213277,4195.5,4195.4,0.68910001]
[1758599729449,0.47513277,4195.5,4195.4,0.68910001]
[1758599729778,0.47513277,4195.5,4195.4,3.07266295]
[1758599729779,0.22316367,4195.5,4195.4,3.07266295]
[1758599729978,0.22268046,4195.5,4195.4,0.68910001]
[1758599730465,4.026,4195.7,4195.4,0.68910001]
[1758599730652,0.22267342,4195.6,4195.5,0.31951061]
[1758599730852,0.22267342,4195.6,4195.5,1.00861061]
[1758599731706,0.22267342,4195.6,4195.5,3.4159518]
[1758599731864,4.026,4195.9,4195.7,2.38335473]
[1758599732058,0.001,4196.0,4195.8,1.28087065]
[1758599732495,0.22271255,4195.9,4195.8,0.59177065]
[1758599732693,4.24871255,4195.9,4195.5,0.1184]
[1758599732897,0.22271255,4195.8,4195.5,0.1184]
[1758599733067,0.22271255,4195.7,4195.6,0.6891]
[1758599733268,0.22271255,4195.7,4195.5,0.1184]
[1758599733573,4.026,4195.9,4195.7,0.6891]
[1758599733873,4.026,4195.9,4195.5,0.36899579]
[1758599733874,0.22272222,4195.8,4195.5,0.36899579]
[1758599734069,0.22272222,4195.7,4195.5,0.36899579]
[1758599734289,4.026,4195.9,4195.6,0.6891]
[1758599734608,0.22271299,4195.8,4195.7,0.6891]
[1758599735103,2.60609158,4195.8,4195.4,1e-08]
[1758599735307,4.24871299,4195.7,4195.5,0.4592]
[1758599735519,0.22271299,4195.6,4195.5,0.4592]
[1758599735811,0.22271299,4195.6,4195.4,1e-08]
[1758599735812,2.60616231,4195.6,4195.4,1e-08]
[1758599735975,0.22271299,4195.5,4195.4,1e-08]
[1758599736193,4.24771299,4195.5,4195.4,0.68910001]
[1758599736525,4.24772535,4195.5,4195.4,0.68910001]
[1758599739915,6.63123148,4195.5,4195.4,1e-08]
[1758599740121,14.97986419,4195.5,4195.4,1e-08]
[1758599740293,15.9450855,4195.5,4195.4,1e-08]
[1758599742521,15.4929855,4195.5,4195.4,1e-08]
[1758599743620,15.9450855,4195.5,4195.4,1e-08]
[1758599744330,15.4929855,4195.5,4195.4,1e-08]
[1758599744894,15.2512855,4195.5,4195.4,1e-08]
[1758599745087,17.3122855,4195.5,4195.4,1e-08]
[1758599747218,11.2262855,4195.5,4195.4,1e-08]
[1758599747423,15.2502855,4195.5,4195.4,1e-08]
[1758599748049,8.84277937,4195.5,4195.4,0.68880001]
[1758599748224,11.95347669,4195.5,4195.4,0.68880001]
[1758599748656,14.33698282,4195.5,4195.4,0.68880001]
[1758599749519,14.33698282,4195.5,4195.4,1e-08]
[1758599750039,11.95347669,4195.5,4195.4,1e-08]
[1758599750418,14.33698282,4195.5,4195.4,1e-08]
[1758599751345,11.95247669,4195.5,4195.4,0.68880001]
[1758599752544,14.33598282,4195.5,4195.4,0.68880001]
[1758599752750,11.95247669,4195.5,4195.4,0.68880001]
[1758599753426,14.33598282,4195.5,4195.4,1e-08]
[1758599754654,11.95247669,4195.5,4195.4,1e-08]
[1758599755221,14.33698282,4195.5,4195.4,1e-08]
[1758599755916,11.95347669,4195.5,4195.4,1e-08]
[1758599756114,11.95347669,4195.5,4195.4,0.68880001]
[1758599756514,7.93047669,4195.5,4195.4,0.68880001]
[1758599756736,12.07187669,4195.5,4195.4,0.68880001]
[1758599759031,0.87047669,4195.5,4195.4,0.68880001]
[1758599759359,4.24572535,4195.5,4195.4,0.68880001]
[1758599759730,0.22372535,4195.5,4195.4,1.00868152]
[1758599760046,0.3575794,4195.5,4195.4,1e-08]
[1758599760622,0.87157004,4195.5,4195.4,1e-08]
[1758599761022,0.87157004,4195.5,4195.4,0.68880001]
[1758599761441,0.87159699,4195.5,4195.4,0.68880001]
[1758599761880,0.3575794,4195.5,4195.4,0.68880001]
[1758599762541,0.87173134,4195.5,4195.4,0.45360001]
[1758599762750,0.87173134,4195.5,4195.4,1e-08]
[1758599763387,0.87173134,4195.5,4195.4,0.68880001]
[1758599764242,0.35811357,4195.5,4195.4,0.68880001]
[1758599765162,0.87239543,4195.5,4195.4,0.68880001]
[1758599770350,0.87239543,4195.5,4195.4,0.45360001]
[1758599771044,0.87239543,4195.5,4195.4,1e-08]
[1758599771650,0.87239543,4195.5,4195.4,0.68880001]
[1758599772583,0.872424,4195.5,4195.4,0.68880001]
[1758599773579,0.872424,4195.5,4195.4,0.45360001]
[1758599773962,0.872424,4195.5,4195.4,1e-08]
[1758599774349,0.22419598,4195.5,4195.4,3.09619857]
[1758599774556,0.22419598,4195.5,4195.4,3.73954939]
[1758599775176,0.001,4195.5,4195.4,3.73954939]
[1758599778591,0.001,4195.5,4195.4,1.35598645]
[1758599780186,0.001,4195.5,4195.4,3.73954939]
[1758599782898,0.001,4195.5,4195.4,1.35598645]
[1758599783303,0.45294802,4195.5,4195.4,1e-08]
[1758599783501,1.03895633,4195.5,4195.4,1e-08]
[1758599783686,1.55319813,4195.5,4195.4,1e-08]
[1758599783868,1.67159813,4195.5,4195.4,1e-08]
[1758599784065,0.70525633,4195.5,4195.4,1e-08]
[1758599784271,4.37605633,4195.5,4195.4,1e-08]
[1758599784681,4.89034494,4195.5,4195.4,1e-08]
[1758599784882,8.69397269,4195.5,4195.4,1e-08]
[1758599785080,8.81237269,4195.5,4195.4,1e-08]
[1758599787006,15.06401892,4195.5,4195.4,1e-08]
[1758599787205,8.81237269,4195.5,4195.4,1e-08]
[1758599787530,9.45539098,4195.5,4195.4,1e-08]
[1758599787688,5.00874494,4195.5,4195.4,1e-08]
[1758599787891,7.39225107,4195.5,4195.4,1e-08]
[1758599788096,3.37425107,4195.5,4195.4,1e-08]
[1758599788306,7.62105107,4195.5,4195.4,1e-08]
[1758599789704,5.23754494,4195.5,4195.4,1e-08]
[1758599789875,7.62105107,4195.5,4195.4,1e-08]
[1758599790270,9.88910844,4195.5,4195.4,1e-08]
[1758599791280,16.94910844,4195.5,4195.4,1e-08]
[1758599793314,16.94918619,4195.5,4195.4,1e-08]
[1758599793979,16.49708619,4195.5,4195.4,1e-08]
[1758599794185,12.29762269,4195.5,4195.4,1e-08]
[1758599794385,14.68112882,4195.5,4195.4,1e-08]
[1758599797533,14.68106054,4195.5,4195.4,1e-08]
[1758599797727,15.13316054,4195.5,4195.4,1e-08]
[1758599797888,16.94911843,4195.5,4195.4,1e-08]
[1758599798518,11.94935441,4195.5,4195.4,1e-08]
[1758599798859,14.33286054,4195.5,4195.4,1e-08]
[1758599799565,14.56166054,4195.5,4195.4,1e-08]
[1758599799856,15.01376054,4195.5,4195.4,1e-08]
[1758599802668,15.01370437,4195.5,4195.4,1e-08]
[1758599802833,16.81771609,4195.5,4195.4,1e-08]
[1758599804346,14.43420996,4195.5,4195.4,1e-08]
[1758599804547,16.81771609,4195.5,4195.4,1e-08]
[1758599805451,13.75330996,4195.5,4195.4,1e-08]
[1758599805615,16.13681609,4195.5,4195.4,1e-08]
[1758599806535,12.11981609,4195.5,4195.4,1e-08]
[1758599806735,16.13581609,4195.5,4195.4,1e-08]
[1758599807746,16.38141609,4195.5,4195.4,1e-08]
[1758599807946,11.94829824,4195.5,4195.4,1e-08]
[1758599808139,11.94829824,4195.5,4195.4,0.69300001]
[1758599808344,11.94829824,4195.5,4195.4,1e-08]
[1758599808871,11.94829824,4195.5,4195.4,0.69300001]
[1758599809075,11.94829824,4195.5,4195.4,1e-08]
[1758599809277,11.94829824,4195.5,4195.4,0.69300001]
[1758599810031,7.93229824,4195.5,4195.4,0.69300001]
[1758599810269,11.94829824,4195.5,4195.4,0.69300001]
[1758599811074,11.94729824,4195.5,4195.4,0.69300001]
[1758599811276,11.94741267,4195.5,4195.4,0.69300001]
[1758599813875,7.93241267,4195.5,4195.4,0.69300001]
[1758599814168,11.94759082,4195.5,4195.4,0.69300001]
[1758599814347,0.87259082,4195.5,4195.4,3.3850292]
[1758599814531,0.87259082,4195.5,4195.4,1.00146626]
[1758599815654,0.87259082,4195.5,4195.4,0.69300001]
[1758599815967,0.87259082,4195.5,4195.4,1e-08]
[1758599816154,0.87259082,4195.5,4195.4,0.46550001]
[1758599816362,0.87259082,4195.5,4195.4,0.69300001]
[1758599818275,0.87255925,4195.5,4195.4,0.69300001]
[1758599818469,0.87255925,4195.5,4195.4,1e-08]
[1758599818669,8.70670778,4195.5,4195.4,1e-08]
[1758599818846,9.34971158,4195.5,4195.4,1e-08]
[1758599819682,8.70670778,4195.5,4195.4,1e-08]
[1758599820841,8.70671595,4195.5,4195.4,1e-08]
[1758599821483,8.65246259,4195.5,4195.4,1e-08]
[1758599821683,8.89806259,4195.5,4195.4,1e-08]
[1758599821883,4.88656742,4195.5,4195.4,0.69300001]
[1758599822087,0.87256742,4195.5,4195.4,0.69300001]
[1758599822293,7.27007355,4195.5,4195.4,0.69300001]
[1758599822478,7.51567355,4195.5,4195.4,1e-08]
[1758599822794,9.21337161,4195.5,4195.4,1e-08]
[1758599823365,7.27007355,4195.5,4195.4,1e-08]
[1758599824372,8.15912019,4195.5,4195.4,1e-08]
[1758599825966,7.96777355,4195.5,4195.4,1e-08]
[1758599827691,9.25166892,4195.5,4195.4,1e-08]
[1758599828693,7.51567355,4195.5,4195.4,1e-08]
[1758599828910,9.08607104,4195.5,4195.4,1e-08]
[1758599829094,5.07207104,4195.5,4195.4,1e-08]
[1758599829291,11.14707104,4195.5,4195.4,1e-08]
[1758599829606,8.63297104,4195.5,4195.4,1e-08]
[1758599830219,9.08507104,4195.5,4195.4,1e-08]
[1758599830384,9.49042446,4195.5,4195.4,1e-08]
[1758599830580,8.63297104,4195.5,4195.4,1e-08]
[1758599830799,9.08507104,4195.5,4195.4,1e-08]
[1758599832805,9.94227011,4195.5,4195.4,1e-08]
[1758599833913,8.38737104,4195.5,4195.4,1e-08]
[1758599834276,4.37437104,4195.5,4195.4,1e-08]
[1758599834480,8.38737104,4195.5,4195.4,1e-08]
[1758599834810,8.63297104,4195.5,4195.4,1e-08]
[1758599835379,9.08507104,4195.5,4195.4,1e-08]
[1758599835799,9.94216647,4195.5,4195.4,1e-08]
[1758599836004,9.49006647,4195.5,4195.4,1e-08]
[1758599836193,9.94216647,4195.5,4195.4,1e-08]
[1758599836394,7.10656034,4195.5,4194.6,0.004]
[1758599836619,8.63555011,4194.8,4194.6,0.004]
[1758599836815,18.58111753,4194.8,4194.7,1e-08]
[1758599837029,20.06301753,4194.8,4194.7,1e-08]
[1758599837338,2.38460018,4193.6,4193.2,0.7173]
[1758599837538,4.88356742,4193.5,4192.9,0.7173]
[1758599837840,2.38492725,4193.0,4192.9,0.7173]
[1758599838039,2.74209163,4193.0,4192.9,0.7173]
[1758599838239,0.22310996,4193.0,4192.9,0.7173]
[1758599839041,4.012,4193.6,4192.9,3.10228413]
[1758599839350,4.012,4193.6,4193.0,1.65269304]
[1758599839552,4.012,4193.6,4193.2,2.38479507]
[1758599839713,4.012,4193.6,4193.3,0.7173]
[1758599839917,4.012,4193.6,4193.4,0.7173]
[1758599840156,4.012,4193.7,4193.5,0.7173]
[1758599840359,4.012,4193.7,4193.1,0.0238487]
[1758599840360,4.012,4193.7,4193.6,0.7173]
[1758599840567,0.51307475,4194.2,4193.6,0.7173]
[1758599840720,4.36829328,4194.1,4193.7,0.7173]
[1758599840920,4.2346833,4194.0,4193.5,2.38463272]
[1758599841267,0.2226833,4193.9,4193.8,0.7173]
[1758599843165,4.012,4193.9,4193.8,0.7173]
[1758599843331,4.2346833,4193.9,4193.8,0.7173]
[1758599844719,2.2998,4194.5,4193.8,3.10176059]
[1758599844720,2.062,4194.5,4193.8,3.10176059]
[1758599844918,0.35617645,4194.4,4194.0,2.3843153]
[1758599845134,0.22260855,4194.3,4194.1,0.74114301]
[1758599845339,0.22260855,4194.3,4194.2,3.1015449]
[1758599845340,4.012,4194.3,4194.2,3.1015449]
[1758599845849,4.012,4194.4,4194.2,0.7173]
[1758599846027,4.012,4194.6,4194.4,2.38410473]
[1758599846346,0.22264165,4194.5,4194.3,2.38418762]
[1758599846534,4.012,4194.6,4194.3,2.38418762]
[1758599846722,0.22266081,4194.5,4194.2,0.1192]
[1758599846923,0.1192,4194.6,4194.3,0.7173]
[1758599847128,0.22266112,4194.5,4194.4,0.7173]
[1758599848337,0.22266112,4194.5,4194.1,0.1192]
[1758599848338,0.22266112,4194.5,4194.1,0.7173]
[1758599848547,0.22266112,4194.4,4194.2,0.7173]
[1758599848747,4.1312,4194.6,4194.3,0.7173]
[1758599848953,0.22275783,4194.5,4194.3,0.7173]
[1758599849135,0.22275783,4194.4,4193.9,0.1192]
[1758599849335,4.1312,4194.6,4194.0,0.25036573]
[1758599849535,0.22277793,4194.5,4194.0,0.25036573]
[1758599849732,0.22277793,4194.4,4193.9,0.1192]
[1758599850073,4.23477793,4194.3,4194.0,0.7173]
[1758599850358,0.22277793,4194.2,4194.0,0.7173]
[1758599850537,4.012,4194.3,4194.0,0.7173]
[1758599850737,0.22280595,4194.2,4194.0,0.7173]
[1758599850938,4.012,4194.3,4194.0,0.7173]
[1758599851138,0.22280594,4194.2,4194.0,0.7173]
[1758599851326,0.22282181,4194.1,4193.6,0.004]
[1758599851526,0.357,4194.2,4193.6,0.004]
[1758599851726,0.22282702,4194.1,4193.6,0.7213]
[1758599851941,0.22282702,4194.0,4193.6,0.004]
[1758599852264,0.22286022,4193.9,4193.6,0.004]
[1758599852450,0.22286022,4193.8,4193.6,0.004]
[1758599852625,0.2378,4193.8,4193.6,0.004]
[1758599852826,4.1312,4194.0,4193.6,0.004]
[1758599853052,0.22286821,4193.9,4193.6,0.004]
[1758599853248,0.22286821,4193.8,4193.6,0.004]
[1758599853450,0.2378,4193.9,4193.6,0.004]
[1758599853662,0.22288841,4193.8,4193.6,0.004]
[1758599853855,2.62221802,4193.9,4193.6,0.004]
[1758599854152,0.22288884,4193.8,4193.6,0.004]
[1758599854351,6.61845378,4193.7,4193.6,0.004]
[1758599854538,5.73743081,4193.7,4193.6,0.004]
[1758599854732,4.35312461,4193.7,4193.6,0.004]
[1758599855058,4.35312461,4193.7,4193.6,0.7213]
[1758599855265,4.4868982,4193.7,4193.6,0.7213]
[1758599855453,5.00058891,4193.7,4193.6,0.004]
[1758599855628,4.35312461,4193.7,4193.6,0.004]
[1758599856030,4.48689493,4193.7,4193.6,0.004]
[1758599856256,5.00057131,4193.7,4193.6,0.004]
[1758599856454,7.88515761,4193.7,4193.6,0.004]
[1758599856665,8.12295761,4193.7,4193.6,0.004]
[1758599858766,5.50062844,4193.7,4193.6,0.004]
[1758599859348,8.12295761,4193.7,4193.6,0.004]
[1758599859974,8.57505761,4193.7,4193.6,0.004]
[1758599860171,8.12295761,4193.7,4193.6,0.004]
[1758599860370,8.57513578,4193.7,4193.6,0.004]
[1758599860777,9.21756513,4193.7,4193.6,0.004]
[1758599861283,8.57513578,4193.7,4193.6,0.004]
[1758599862185,9.21725524,4193.7,4193.6,0.004]
[1758599863682,4.88144948,4193.7,4193.6,0.004]
[1758599864083,7.50377865,4193.7,4193.6,0.004]
[1758599864485,7.26597865,4193.7,4193.6,0.004]
[1758599865670,0.87044948,4193.7,4193.6,0.2413]
[1758599865853,5.00064948,4193.7,4193.6,0.6746]
[1758599866258,7.38517865,4193.7,4193.6,0.6746]
[1758599867208,0.98964948,4193.7,4193.6,0.6746]
[1758599867410,0.98964948,4193.7,4193.6,0.2413]
[1758599867618,8.03670404,4193.7,4193.6,0.004]
[1758599867905,7.63507865,4193.7,4193.6,0.004]
[1758599869766,7.12140227,4193.7,4193.6,0.004]
[1758599869966,7.63533674,4193.7,4193.6,0.004]
[1758599871502,7.38543674,4193.7,4193.6,0.004]
[1758599872366,8.45165595,4193.7,4193.6,0.004]
[1758599875111,4.44065595,4193.7,4193.6,0.004]
[1758599875322,8.45165595,4193.7,4193.6,0.004]
[1758599878225,4.44065595,4193.7,4193.6,0.004]
[1758599878409,9.09307404,4193.7,4193.6,0.004]
[1758599880386,8.45065595,4193.7,4193.6,0.2413]
[1758599880589,8.45065595,4193.7,4193.6,0.004]
[1758599880819,9.34297404,4193.7,4193.6,0.004]
[1758599881503,9.34324963,4193.7,4193.6,0.004]
[1758599882307,8.70083154,4193.7,4193.6,0.004]
[1758599882711,9.34446118,4193.7,4193.6,0.004]
[1758599883042,9.34543155,4193.7,4193.6,0.004]
[1758599883398,8.70180128,4193.7,4193.6,0.004]
[1758599888524,8.45190128,4193.7,4193.6,0.004]
[1758599888724,7.63558207,4193.7,4193.6,0.004]
[1758599889755,7.27853338,4193.7,4193.6,0.004]
[1758599889928,7.63633667,4193.7,4193.6,0.004]
[1758599892156,7.38643667,4193.7,4193.6,0.004]
[1758599892546,0.9919075,4193.7,4193.6,0.004]
[1758599892746,4.8817075,4193.7,4193.6,0.6746]
[1758599893150,7.26623667,4193.7,4193.6,0.6746]
[1758599894062,7.26635021,4193.7,4193.6,0.6746]
[1758599895329,0.87282104,4193.7,4193.6,0.4373]
[1758599895661,3.90157797,4193.7,4193.6,0.6785]
[1758599895831,1.5170488,4193.7,4193.6,0.6785]
[1758599896247,0.87282104,4193.7,4193.6,0.6785]
[1758599896652,3.25735021,4193.7,4193.6,0.6785]
[1758599896964,0.87282104,4193.7,4193.6,0.6785]
[1758599897166,4.88182104,4193.7,4193.6,0.6785]
[1758599897465,4.65322776,4194.7,4193.7,2.38451873]
[1758599897645,0.87290873,4194.4,4193.8,0.30630187]
[1758599897844,0.73875297,4194.3,4194.2,2.3842449]
[1758599898038,0.73874766,4194.3,4194.2,2.3842449]
[1758599898238,0.22358763,4194.3,4194.2,3.0896449]
[1758599898450,4.009,4194.6,4194.4,2.38413122]
[1758599898650,0.73879688,4194.5,4194.4,2.38413122]
[1758599899069,0.22429882,4194.5,4194.4,3.08953122]
[1758599899932,0.22429882,4194.5,4194.4,0.7054]
[1758599900471,0.001,4194.5,4194.4,3.08953122]
[1758599901238,0.001,4194.5,4194.4,0.7054]
[1758599901769,0.001,4194.5,4194.4,3.08953122]
[1758599903270,0.001,4194.5,4194.4,0.7054]
[1758599903769,0.001,4194.5,4193.7,6.25584005]
[1758599903770,0.45803241,4194.5,4193.7,0.2412]
[1758599904067,6.25584005,4194.3,4193.6,0.004]
[1758599904266,4.7443287,4194.2,4193.6,0.004]
[1758599904569,0.22283241,4194.1,4193.6,0.004]
[1758599904769,0.22283241,4194.0,4193.6,0.004]
[1758599905068,4.008,4193.9,4193.6,0.004]
[1758599905268,4.2422,4193.9,4193.6,0.004]
[1758599907475,4.3614,4193.9,4193.6,0.004]
[1758599910072,4.007,4193.8,4193.6,0.004]
[1758599910275,4.007,4193.8,4193.7,0.7054]
[1758599911056,0.1192,4193.9,4193.7,0.7054]
[1758599912873,0.1192,4193.9,4193.6,2.3885851]
[1758599912874,0.1192,4193.9,4193.8,0.7054]
[1758599913657,0.1192,4193.9,4193.6,0.004]
[1758599913958,0.3534,4193.9,4193.6,0.004]
[1758599914548,0.3534,4193.9,4193.6,0.4682]
[1758599915448,4.007,4194.0,4193.6,0.004]
[1758599915670,0.2342,4193.9,4193.6,0.004]
[1758599916850,0.45717703,4193.8,4193.6,0.004]
[1758599917049,0.2342,4193.8,4193.6,0.004]
[1758599917249,0.22299384,4193.7,4193.6,0.004]
[1758599917680,0.45719384,4193.7,4193.6,0.004]
[1758599919458,7.62956935,4193.7,4193.6,0.004]
[1758599919650,8.5893575,4193.7,4193.6,0.004]
[1758599919846,8.72320052,4193.7,4193.6,0.004]
[1758599923482,8.27720052,4193.7,4193.6,0.004]
[1758599931211,7.49635418,4193.7,4193.6,0.004]
[1758599934013,14.20129423,4193.7,4193.6,0.004]
[1758599934183,13.75219423,4193.7,4193.6,0.004]
[1758599934383,15.05786669,4193.7,4193.6,0.004]
[1758599934689,4.34592664,4193.7,4193.6,0.004]
[1758599934881,8.70626362,4193.7,4193.6,0.004]
[1758599935085,10.76821048,4193.7,4193.6,0.004]
[1758599935486,11.003281,4193.7,4193.6,0.004]
[1758599935915,8.706881,4193.7,4193.6,0.004]
[1758599936216,7.90536047,4193.7,4193.6,0.004]
[1758599936515,0.87129553,4193.7,4193.6,0.6907]
[1758599936721,4.87729553,4193.7,4193.6,0.6907]
[1758599938209,4.87729553,4193.7,4193.6,0.4507]
[1758599938410,7.2618153,4193.7,4193.6,0.004]
[1758599938611,8.5251955,4193.7,4193.6,0.004]
[1758599939629,8.5251956,4193.7,4193.6,0.004]
[1758599940129,7.4962154,4193.7,4193.6,0.004]
[1758599940300,7.2618154,4193.7,4193.6,0.004]
[1758599940632,7.2618154,4193.7,4193.6,0.4507]
[1758599941002,7.2618154,4193.7,4193.6,0.004]
[1758599941202,3.2558154,4193.7,4193.6,0.004]
[1758599941533,7.2608154,4193.7,4193.6,0.004]
[1758599942238,4.87628623,4193.7,4193.6,0.004]
[1758599942531,4.87628623,4193.7,4193.6,0.6907]
[1758599942945,7.2608154,4193.7,4193.6,0.6907]
[1758599943230,4.87628623,4193.7,4193.6,0.6907]
[1758599944332,0.87128623,4193.7,4193.6,0.6907]
[1758599944632,4.87628623,4193.7,4193.6,0.6907]
[1758599945133,0.87128623,4193.7,4193.6,0.6907]
[1758599945332,4.87628623,4193.7,4193.6,0.6907]
[1758599949525,0.87128623,4193.7,4193.6,0.6907]
[1758599949839,0.87128623,4193.7,4193.6,0.99824449]
[1758599950019,0.22344221,4193.7,4193.6,3.19448603]
[1758599951268,0.5149204,4194.1,4193.6,0.8099]
[1758599951566,0.35748574,4194.0,4193.7,0.6867]
[1758599951723,0.35748574,4193.9,4193.8,1.00614407]
[1758599952125,0.35748574,4193.9,4193.8,1.12534407]
[1758599953262,0.22342859,4193.9,4193.8,1.12534407]
[1758599955031,0.22330081,4193.9,4193.8,0.8059]
[1758599956271,0.001,4194.5,4194.0,2.384348]